fUSD/lending_fUSD_20251221
["ID","MTS","AMOUNT","RATE_DAILY","PERIOD"]
[399410027,1766332240361,-1500.0,0.00014368,2]
[399410028,1766332240371,-1500.0,0.00014368,2]
[399410029,1766332240380,-1500.0,0.00014368,2]
[399410030,1766332240389,-1500.0,0.00014368,2]
[399410031,1766332240398,-166.66,0.00014384,2]
[399410032,1766332240408,-1413.57889938,0.00014417,2]
[399410033,1766332240417,-26191.44380865,0.00014433,2]
[399410034,1766332240427,-1935.61,0.00014452,2]
[399410035,1766332240437,-264.72472257,0.00014602,2]
[399410036,1766332240446,-1000.0,0.00014779,2]
[399410037,1766332240456,-500.0,0.00014784,2]
[399410038,1766332240465,-500.0,0.00014784,2]
[399410039,1766332240475,-500.0,0.00014784,2]
[399410040,1766332240485,-500.0,0.00014784,2]
[399410041,1766332240494,-500.0,0.00014784,2]
[399410042,1766332240503,-500.0,0.00014784,2]
[399410043,1766332240512,-151.0,0.00014864,2]
[399410044,1766332240522,-151.0,0.00014883,2]
[399410045,1766332240532,-2000.0,0.00014916,2]
[399410046,1766332240547,-2000.0,0.00014916,2]
[399410047,1766332240556,-1822.49283525,0.00014916,2]
[399410048,1766332240566,-1138.30499273,0.00014916,2]
[399410049,1766332240575,-548.39145634,0.00014999,2]
[399410050,1766332240585,-500.0,0.00014999,2]
[399410051,1766332240594,-1935.61,0.00014999,2]
[399410052,1766332240604,-736.0,0.00015021,2]
[399410053,1766332240613,-823.0,0.00015044,2]
[399410054,1766332240623,-26191.44380865,0.0001505,2]
[399410055,1766332240633,-3292.0,0.00015106,2]
[399410056,1766332240642,-500.0,0.00015189,2]
[399410057,1766332240652,-1935.61,0.00015273,2]
[399410058,1766332240661,-150.0,0.00015288,2]
[399410059,1766332240671,-150.0,0.00015288,2]
[399410060,1766332240680,-150.0,0.00015288,2]
[399410061,1766332240689,-150.0,0.00015288,2]
[399410062,1766332240698,-151.28381653,0.00015288,2]
[399410063,1766332240707,-150.0,0.00015288,2]
[399410064,1766332240716,-150.0,0.00015288,2]
[399410065,1766332240726,-150.0,0.00015288,2]
[399410066,1766332240736,-150.0,0.00015288,2]
[399410067,1766332240745,-150.0,0.00015288,2]
[399410068,1766332240755,-150.0,0.00015288,2]
[399410069,1766332240764,-150.0,0.00015288,2]
[399410070,1766332240774,-150.0,0.00015288,2]
[399410071,1766332240783,-150.0,0.00015288,2]
[399410072,1766332240793,-150.0,0.00015288,2]
[399410073,1766332240803,-150.89972091,0.00015288,2]
[399410074,1766332240812,-150.0,0.00015288,2]
[399410075,1766332240821,-150.0,0.00015324,2]
[399410076,1766332240830,-150.0,0.00015328,2]
[399410077,1766332240839,-150.0,0.00015336,2]
[399410078,1766332240848,-150.0,0.00015358,2]
[399410079,1766332240858,-150.0,0.0001536,2]
[399410080,1766332240867,-264.72472257,0.00015368,2]
[399410081,1766332240876,-150.0,0.00015369,2]
[399410082,1766332240885,-150.0,0.00015369,2]
[399410083,1766332240895,-150.0,0.00015373,2]
[399410084,1766332240903,-150.0,0.00015385,2]
[399410085,1766332240913,-150.0,0.00015396,2]
[399410086,1766332240922,-150.0,0.00015409,2]
[399410087,1766332240931,-150.0,0.00015425,2]
[399410088,1766332240940,-150.0,0.00015429,2]
[399410089,1766332240949,-150.0,0.00015432,2]
[399410090,1766332240958,-150.0,0.00015433,2]
[399410091,1766332240968,-150.0,0.00015449,2]
[399410092,1766332240977,-150.0,0.00015449,2]
[399410093,1766332240986,-150.0,0.00015458,2]
[399410094,1766332240995,-2500.0,0.00015464,2]
[399410095,1766332241005,-2500.0,0.00015464,2]
[399410096,1766332241015,-150.0,0.00015468,2]
[399410097,1766332241025,-150.0,0.00015482,2]
[399410098,1766332241035,-150.0,0.0001549,2]
[399410099,1766332241044,-150.0,0.000155,2]
[399410100,1766332241053,-150.0,0.00015505,2]
[399410101,1766332241063,-150.0,0.0001553,2]
[399410102,1766332241074,-150.0,0.0001553,2]
[399410103,1766332241084,-150.0,0.0001553,2]
[399410104,1766332241094,-150.0,0.0001553,2]
[399410105,1766332241103,-150.0,0.00015541,2]
[399410106,1766332241112,-150.0,0.00015542,2]
[399410107,1766332241121,-1935.61,0.00015547,2]
[399410108,1766332241131,-150.0,0.00015571,2]
[399410109,1766332241140,-150.0,0.00015571,2]
[399410110,1766332241150,-150.0,0.00015571,2]
[399410111,1766332241159,-150.0,0.00015571,2]
[399410112,1766332241167,-150.0,0.00015577,2]
[399410113,1766332241177,-150.0,0.00015579,2]
[399410114,1766332241186,-150.0,0.00015611,2]
[399410115,1766332241196,-150.0,0.00015611,2]
[399410116,1766332241207,-150.0,0.00015613,2]
[399410117,1766332241216,-500.0,0.00015616,2]
[399410118,1766332241226,-150.0,0.00015627,2]
[399410119,1766332241235,-150.0,0.00015627,2]
[399410120,1766332241249,-150.0,0.00015642,2]
[399410121,1766332241259,-150.0,0.00015649,2]
[399410122,1766332241268,-150.0,0.00015652,2]
[399410123,1766332241278,-1413.57889936,0.00015659,2]
[399410124,1766332241290,-26191.44380865,0.00015667,2]
[399410125,1766332241299,-150.0,0.00015676,2]
[399410126,1766332241308,-150.0,0.00015685,2]
[399410127,1766332241318,-150.0,0.00015692,2]
[399410128,1766332241328,-150.0,0.00015692,2]
[399410129,1766332241337,-150.0,0.00015712,2]
[399410130,1766332241346,-150.0,0.00015712,2]
[399410131,1766332241355,-150.0,0.00015712,2]
[399410132,1766332241364,-150.0,0.00015721,2]
[399410133,1766332241373,-150.0,0.00015724,2]
[399410134,1766332241383,-150.0,0.00015733,2]
[399410135,1766332241391,-150.0,0.00015758,2]
[399410136,1766332241401,-150.0,0.00015773,2]
[399410137,1766332241410,-150.0,0.00015773,2]
[399410138,1766332241419,-150.0,0.00015773,2]
[399410139,1766332241428,-150.0,0.00015773,2]
[399410140,1766332241445,-150.0,0.00015783,2]
[399410141,1766332241455,-150.0,0.00015794,2]
[399410142,1766332241464,-150.0,0.00015797,2]
[399410143,1766332241473,-150.0,0.00015813,2]
[399410144,1766332241482,-1935.61,0.00015821,2]
[399410145,1766332241492,-150.0,0.00015822,2]
[399410146,1766332241502,-150.0,0.0001583,2]
[399410147,1766332241511,-150.0,0.00015854,2]
[399410148,1766332241521,-150.0,0.00015854,2]
[399410149,1766332241531,-150.0,0.00015854,2]
[399410150,1766332241540,-150.0,0.00015854,2]
[399410151,1766332241549,-150.0,0.00015854,2]
[399410152,1766332241559,-150.0,0.00015866,2]
[399410153,1766332241568,-150.0,0.0001587,2]
[399410154,1766332241578,-150.0,0.00015882,2]
[399410155,1766332241587,-150.0,0.00015894,2]
[399410156,1766332241596,-150.0,0.00015902,2]
[399410157,1766332241605,-150.0,0.00015919,2]
[399410158,1766332241615,-150.0,0.00015925,2]
[399410159,1766332241624,-150.0,0.00015935,2]
[399410160,1766332241633,-150.0,0.00015935,2]
[399410161,1766332241642,-150.0,0.00015938,2]
[399410162,1766332241652,-333.35,0.00015945,2]
[399410163,1766332241661,-289.67,0.00015965,2]
[399410164,1766332241670,-150.0,0.00015967,2]
[399410165,1766332241679,-150.0,0.00015967,2]
[399410166,1766332241688,-500.51801303,0.00015973,2]
[399410167,1766332241698,-500.4654119,0.00015973,2]
[399410168,1766332241707,-500.0,0.00015973,2]
[399410169,1766332241716,-500.0,0.00015973,2]
[399410170,1766332241725,-500.56420784,0.00015973,2]
[399410171,1766332241735,-162.38378184,0.00015973,2]
[399410172,1766332241744,-500.0,0.00015973,2]
[399410173,1766332241752,-500.0,0.00015973,2]
[399410174,1766332241762,-555.97636192,0.00015973,2]
[399410175,1766332241771,-500.0,0.00015973,2]
[399410176,1766332241780,-500.0,0.00015973,2]
[399410177,1766332241790,-500.0,0.00015973,2]
[399410178,1766332241798,-500.0,0.00015973,2]
[399410179,1766332241809,-500.0,0.00015973,2]
[399410180,1766332241819,-500.0,0.00015973,2]
[399410181,1766332241828,-570.29356194,0.00015973,2]
[399410182,1766332241840,-330.74959628,0.00015973,2]
[399410183,1766332241849,-500.0,0.00015973,2]
[399410184,1766332241858,-269.64224637,0.00015973,2]
[399410185,1766332241867,-500.81615011,0.00015973,2]
[399410186,1766332241876,-500.30670484,0.00015973,2]
[399410187,1766332241885,-500.77244015,0.00015973,2]
[399410188,1766332241894,-160.18740865,0.00015973,2]
[399410189,1766332241903,-160.18740865,0.00015973,2]
[399410190,1766332241912,-500.67170266,0.00015973,2]
[399410191,1766332241922,-160.18818998,0.00015973,2]
[399410192,1766332241931,-162.2682575,0.00015973,2]
[399410193,1766332241941,-452.23233136,0.00015973,2]
[399410194,1766332241950,-500.0,0.00015973,2]
[399410195,1766332241959,-500.0,0.00015973,2]
[399410196,1766332241968,-160.18741035,0.00015973,2]
[399410197,1766332241978,-500.0,0.00015973,2]
[399410198,1766332241988,-160.18740865,0.00015973,2]
[399410199,1766332241997,-500.0,0.00015973,2]
[399410200,1766332242007,-500.0,0.00015973,2]
[399410201,1766332242016,-500.0,0.00015973,2]
[399410202,1766332242026,-530.05316157,0.00015973,2]
[399410203,1766332242035,-500.0,0.00015973,2]
[399410204,1766332242044,-500.0,0.00015973,2]
[399410205,1766332242054,-500.0,0.00015973,2]
[399410206,1766332242063,-500.0,0.00015973,2]
[399410207,1766332242072,-500.0,0.00015973,2]
[399410208,1766332242082,-517.55500559,0.00015973,2]
[399410209,1766332242091,-500.0,0.00015973,2]
[399410210,1766332242100,-334.60508476,0.00015973,2]
[399410211,1766332242109,-500.0,0.00015973,2]
[399410212,1766332242118,-500.0,0.00015973,2]
[399410213,1766332242128,-590.29428357,0.00015973,2]
[399410214,1766332242137,-500.0,0.00015973,2]
[399410215,1766332242147,-500.0,0.00015973,2]
[399410216,1766332242156,-160.18740865,0.00015973,2]
[399410217,1766332242167,-160.18819168,0.00015973,2]
[399410218,1766332242176,-500.0,0.00015973,2]
[399410219,1766332242185,-150.17482874,0.00015973,2]
[399410220,1766332242195,-160.18546537,0.00015973,2]
[399410221,1766332242205,-160.18740865,0.00015973,2]
[399410222,1766332242215,-500.52093975,0.00015973,2]
[399410223,1766332242225,-160.18740865,0.00015973,2]
[399410224,1766332242235,-160.18477965,0.00015973,2]
[399410225,1766332242245,-160.18740865,0.00015973,2]
[399410226,1766332242258,-160.18648397,0.00015973,2]
[399410227,1766332242267,-160.18740865,0.00015973,2]
[399410228,1766332242278,-160.176,0.00015973,2]
[399410229,1766332242287,-177.38138354,0.00015973,2]
[399410230,1766332242296,-500.0,0.00015973,2]
[399410231,1766332242305,-500.0,0.00015973,2]
[399410232,1766332242314,-500.0,0.00015973,2]
[399410233,1766332242325,-500.0,0.00015973,2]
[399410234,1766332242335,-500.0,0.00015973,2]
[399410235,1766332242343,-500.0,0.00015973,2]
[399410236,1766332242354,-500.0,0.00015973,2]
[399410237,1766332242363,-500.0,0.00015973,2]
[399410238,1766332242372,-500.0,0.00015973,2]
[399410239,1766332242381,-500.0,0.00015973,2]
[399410240,1766332242391,-500.0,0.00015973,2]
[399410241,1766332242400,-500.0,0.00015973,2]
[399410242,1766332242408,-168.59717172,0.00015973,2]
[399410243,1766332242418,-150.0,0.00015974,2]
[399410244,1766332242427,-150.0,0.00015975,2]
[399410245,1766332242437,-150.0,0.00015995,2]
[399410246,1766332242446,-500.0,0.00015999,2]
[399410247,1766332242455,-500.0,0.00015999,2]
[399410248,1766332242465,-500.0,0.00015999,2]
[399410249,1766332242475,-500.0,0.00015999,2]
[399410250,1766332242484,-500.0,0.00015999,2]
[399410251,1766332242494,-500.0,0.00015999,2]
[399410252,1766332242503,-150.0,0.0001601,2]
[399410253,1766332242513,-500.0,0.00016012,2]
[399410254,1766332242524,-2577.26528562,0.00016012,2]
[399410255,1766332242533,-3000.0,0.00016012,2]
[399410256,1766332242542,-150.0,0.00016016,2]
[399410257,1766332242551,-150.0,0.00016016,2]
[399410258,1766332242561,-150.0,0.00016016,2]
[399410259,1766332242571,-150.0,0.00016016,2]
[399410260,1766332242580,-150.0,0.00016047,2]
[399410261,1766332242590,-150.0,0.00016052,2]
[399410262,1766332242599,-150.0,0.00016056,2]
[399410263,1766332242608,-150.0,0.00016064,2]
[399410264,1766332242617,-150.0,0.00016066,2]
[399410265,1766332242627,-150.0,0.00016083,2]
[399410266,1766332242636,-1935.61,0.00016095,2]
[399410267,1766332242645,-150.0,0.00016097,2]
[399410268,1766332242654,-150.0,0.00016097,2]
[399410269,1766332242664,-990.04440146,0.00016099,2]
[399410270,1766332242673,-150.0,0.00016113,2]
[399410271,1766332242683,-150.0,0.00016119,2]
[399410272,1766332242692,-222.21592581,0.00016128,2]
[399410273,1766332242701,-264.72472257,0.00016134,2]
[399410274,1766332242710,-150.0,0.00016137,2]
[399410275,1766332242719,-150.0,0.00016137,2]
[399410276,1766332242729,-150.0,0.00016137,2]
[399410277,1766332242738,-150.0,0.00016137,2]
[399410278,1766332242747,-150.0,0.00016137,2]
[399410279,1766332242757,-150.0,0.00016137,2]
[399410280,1766332242767,-150.0,0.00016137,2]
[399410281,1766332242778,-150.0,0.00016137,2]
[399410283,1766332242787,-150.0,0.00016155,2]
[399410285,1766332242796,-150.0,0.00016161,2]
[399410286,1766332242805,-150.0,0.00016177,2]
[399410288,1766332242815,-150.0,0.00016177,2]
[399410290,1766332242824,-150.0,0.00016191,2]
[399410291,1766332242833,-150.0,0.00016208,2]
[399410292,1766332242843,-150.0,0.0001621,2]
[399410293,1766332242852,-150.0,0.00016218,2]
[399410294,1766332242863,-150.0,0.00016222,2]
[399410295,1766332242872,-150.0,0.00016227,2]
[399410296,1766332242882,-1000.0,0.00016257,2]
[399410297,1766332242891,-150.0,0.00016258,2]
[399410298,1766332242900,-150.0,0.00016258,2]
[399410299,1766332242910,-150.0,0.00016258,2]
[399410300,1766332242919,-150.0,0.00016258,2]
[399410301,1766332242927,-150.0,0.00016263,2]
[399410302,1766332242937,-150.0,0.00016279,2]
[399410303,1766332242946,-26191.44380865,0.00016283,2]
[399410304,1766332242956,-150.0,0.00016299,2]
[399410306,1766332242965,-150.0,0.000163,2]
[399410308,1766332242975,-19924.45879842,0.00016304,2]
[399410311,1766332242984,-150.0,0.00016307,2]
[399410314,1766332242993,-150.0,0.00016307,2]
[399410316,1766332243003,-150.0,0.00016336,2]
[399410318,1766332243012,-10000.0,0.00016338,2]
[399410320,1766332243024,-150.0,0.00016339,2]
[399410322,1766332243034,-150.0,0.00016339,2]
[399410323,1766332243044,-150.0,0.00016349,2]
[399410324,1766332243054,-150.0,0.00016355,2]
[399410325,1766332243065,-1935.61,0.00016369,2]
[399410326,1766332243075,-150.0,0.00016372,2]
[399410327,1766332243085,-150.0,0.0001638,2]
[399410328,1766332243095,-150.0,0.00016392,2]
[399410329,1766332243105,-150.0,0.00016404,2]
[399410330,1766332243115,-1252.0,0.00016406,2]
[399410331,1766332243124,-150.0,0.00016408,2]
[399410332,1766332243134,-150.0,0.0001642,2]
[399410333,1766332243144,-150.0,0.0001642,2]
[399410334,1766332243153,-150.0,0.0001642,2]
[399410335,1766332243163,-150.0,0.0001642,2]
[399410336,1766332243172,-150.0,0.0001642,2]
[399410337,1766332243182,-333.35,0.00016421,2]
[399410338,1766332243192,-646.02,0.00016437,2]
[399410339,1766332243201,-1412.49469564,0.00016438,2]
[399410340,1766332243211,-1412.49469564,0.00016438,2]
[399410341,1766332243220,-1412.49469564,0.00016438,2]
[399410342,1766332243229,-1412.49469564,0.00016438,2]
[399410343,1766332243240,-1412.49469564,0.00016438,2]
[399410344,1766332243252,-1412.49469564,0.00016438,2]
[399410345,1766332243262,-1412.49469564,0.00016438,2]
[399410346,1766332243271,-1412.49469564,0.00016438,2]
[399410347,1766332243284,-1412.49469564,0.00016438,2]
[399410348,1766332243296,-1412.49469564,0.00016438,2]
[399410349,1766332243305,-1412.49469564,0.00016438,2]
[399410350,1766332243315,-1412.49469564,0.00016438,2]
[399410351,1766332243325,-1412.49469564,0.00016438,2]
[399410352,1766332243335,-1412.49469564,0.00016438,2]
[399410353,1766332243345,-1412.49469564,0.00016438,2]
[399410354,1766332243354,-1412.49469564,0.00016438,2]
[399410355,1766332243363,-1412.49469564,0.00016438,2]
[399410356,1766332243373,-1412.49469564,0.00016438,2]
[399410357,1766332243383,-1412.49469564,0.00016438,2]
[399410358,1766332243394,-1412.49469564,0.00016438,2]
[399410359,1766332243404,-1412.49469564,0.00016438,2]
[399410360,1766332243414,-1412.49469564,0.00016438,2]
[399410361,1766332243424,-1412.49469564,0.00016438,2]
[399410362,1766332243434,-1412.49469564,0.00016438,2]
[399410363,1766332243444,-1412.49469564,0.00016438,2]
[399410364,1766332243454,-1412.49469564,0.00016438,2]
[399410365,1766332243463,-1412.49469564,0.00016438,2]
[399410366,1766332243474,-1412.49469564,0.00016438,2]
[399410367,1766332243484,-1412.49469564,0.00016438,2]
[399410368,1766332243493,-1412.49469563,0.00016438,2]
[399410369,1766332243503,-1412.49469564,0.00016438,2]
[399410370,1766332243513,-1412.49469564,0.00016438,2]
[399410371,1766332243526,-1412.49469564,0.00016438,2]
[399410372,1766332243536,-1412.49469564,0.00016438,2]
[399410373,1766332243546,-1412.49469564,0.00016438,2]
[399410374,1766332243556,-1412.49469564,0.00016438,2]
[399410375,1766332243566,-1412.49469564,0.00016438,2]
[399410376,1766332243576,-1412.49469564,0.00016438,2]
[399410377,1766332243585,-1412.49469564,0.00016438,2]
[399410380,1766332243596,-1412.49469564,0.00016438,2]
[399410382,1766332243606,-1412.49469564,0.00016438,2]
[399410383,1766332243616,-1412.49469564,0.00016438,2]
[399410385,1766332243625,-1412.49469564,0.00016438,2]
[399410389,1766332243811,-2224.91446927,0.00016438,2]
[399410390,1766332243822,-2224.91446927,0.00016438,2]
[399410391,1766332243831,-2224.91446927,0.00016438,2]
[399410392,1766332243841,-2224.91446927,0.00016438,2]
[399410393,1766332243851,-2224.91446927,0.00016438,2]
[399410394,1766332243861,-2224.91446927,0.00016438,2]
[399410395,1766332243870,-2224.91446927,0.00016438,2]
[399410396,1766332243880,-2224.91446927,0.00016438,2]
[399410397,1766332243890,-2224.91446927,0.00016438,2]
[399410398,1766332243899,-2224.91446927,0.00016438,2]
[399410399,1766332243909,-2224.91446927,0.00016438,2]
[399410400,1766332243919,-2224.91446927,0.00016438,2]
[399410401,1766332243929,-2224.91446927,0.00016438,2]
[399410402,1766332243939,-2224.91446927,0.00016438,2]
[399410403,1766332243949,-2224.91446927,0.00016438,2]
[399410404,1766332243959,-2224.91446927,0.00016438,2]
[399410405,1766332243968,-2224.91446927,0.00016438,2]
[399410406,1766332243978,-2224.91446927,0.00016438,2]
[399410407,1766332243988,-2224.91446927,0.00016438,2]
[399410408,1766332243999,-2224.91446927,0.00016438,2]
[399410409,1766332244009,-2224.91446927,0.00016438,2]
[399410410,1766332244019,-2224.91446927,0.00016438,2]
[399410411,1766332244031,-2224.91446927,0.00016438,2]
[399410412,1766332244041,-2224.91446927,0.00016438,2]
[399410413,1766332244051,-2224.91446927,0.00016438,2]
[399410414,1766332244061,-2224.91446927,0.00016438,2]
[399410415,1766332244071,-2224.91446927,0.00016438,2]
[399410416,1766332244081,-2217.88842359,0.00016438,2]
[399410417,1766332244091,-2217.88842359,0.00016438,2]
[399410418,1766332244101,-2217.88842359,0.00016438,2]
[399410419,1766332244111,-2217.88842359,0.00016438,2]
[399410420,1766332244121,-2217.88842359,0.00016438,2]
[399410421,1766332244131,-2217.88842359,0.00016438,2]
[399410422,1766332244140,-2217.88842359,0.00016438,2]
[399410423,1766332244150,-2217.88842359,0.00016438,2]
[399410424,1766332244159,-2217.88842359,0.00016438,2]
[399410425,1766332244169,-2217.88842359,0.00016438,2]
[399410426,1766332244179,-2217.88842359,0.00016438,2]
[399410427,1766332244188,-2217.88842359,0.00016438,2]
[399410428,1766332244198,-2217.88842359,0.00016438,2]
[399410429,1766332244208,-2217.88842359,0.00016438,2]
[399410430,1766332244218,-2217.88842359,0.00016438,2]
[399410431,1766332244228,-2217.88842359,0.00016438,2]
[399410432,1766332244237,-2217.88842359,0.00016438,2]
[399410433,1766332244254,-2217.88842356,0.00016438,2]
[399410434,1766332244264,-2217.88842356,0.00016438,2]
[399410435,1766332244276,-800.0,0.00016438,2]
[399410436,1766332244287,-289.67,0.00016439,2]
[399410437,1766332244296,-150.0,0.00016444,2]
[399410438,1766332244306,-150.0,0.00016452,2]
[399410439,1766332244316,-150.0,0.00016461,2]
[399410440,1766332244326,-150.0,0.00016477,2]
[399410441,1766332244335,-150.0,0.0001648,2]
[399410442,1766332244345,-150.0,0.00016491,2]
[399410443,1766332244354,-150.0,0.00016501,2]
[399410444,1766332244363,-150.0,0.00016501,2]
[399410445,1766332244373,-150.0,0.00016501,2]
[399410446,1766332244383,-150.0,0.00016501,2]
[399410447,1766332244393,-150.0,0.00016516,2]
[399410448,1766332244403,-979.05040621,0.00016521,2]
[399410449,1766332244412,-810.71387342,0.00016521,2]
[399410450,1766332244422,-811.84683956,0.00016521,2]
[399410451,1766332244432,-1000.0,0.00016521,2]
[399410452,1766332244441,-1000.0,0.00016521,2]
[399410453,1766332244452,-501.99535785,0.00016521,2]
[399410454,1766332244462,-1000.0,0.00016521,2]
[399410455,1766332244472,-1000.0,0.00016521,2]
[399410456,1766332244481,-500.0,0.00016521,2]
[399410457,1766332244491,-500.0,0.00016521,2]
[399410458,1766332244501,-806.90902189,0.00016521,2]
[399410459,1766332244511,-511.36256137,0.00016521,2]
[399410460,1766332244520,-486.87494443,0.00016521,2]
[399410461,1766332244532,-1000.0,0.00016521,2]
[399410462,1766332244541,-1000.0,0.00016521,2]
[399410463,1766332244551,-1000.0,0.00016521,2]
[399410464,1766332244560,-1000.0,0.00016521,2]
[399410465,1766332244569,-1000.0,0.00016521,2]
[399410466,1766332244578,-1000.0,0.00016521,2]
[399410467,1766332244589,-502.34941568,0.00016521,2]
[399410468,1766332244599,-1000.0,0.00016521,2]
[399410469,1766332244608,-1000.0,0.00016521,2]
[399410470,1766332244617,-1000.0,0.00016521,2]
[399410471,1766332244627,-1000.0,0.00016521,2]
[399410472,1766332244636,-1000.0,0.00016521,2]
[399410473,1766332244645,-1000.0,0.00016521,2]
[399410474,1766332244655,-1000.0,0.00016521,2]
[399410475,1766332244664,-1000.0,0.00016521,2]
[399410476,1766332244674,-576.10062402,0.00016521,2]
[399410477,1766332244683,-1000.0,0.00016521,2]
[399410478,1766332244693,-1000.0,0.00016521,2]
[399410479,1766332244702,-1000.0,0.00016521,2]
[399410480,1766332244712,-1000.0,0.00016521,2]
[399410481,1766332244721,-1000.0,0.00016521,2]
[399410482,1766332244730,-1000.0,0.00016521,2]
[399410483,1766332244740,-1000.0,0.00016521,2]
[399410484,1766332244749,-1000.0,0.00016521,2]
[399410485,1766332244758,-1001.73216536,0.00016521,2]
[399410486,1766332244767,-669.31135743,0.00016521,2]
[399410487,1766332244778,-1000.0,0.00016521,2]
[399410488,1766332244788,-1152.0,0.00016526,2]
[399410489,1766332244798,-150.0,0.00016541,2]
[399410490,1766332244808,-150.0,0.0001655,2]
[399410491,1766332244817,-150.0,0.00016553,2]
[399410492,1766332244827,-3500.0,0.0001656,2]
[399410493,1766332244836,-150.0,0.00016562,2]
[399410494,1766332244846,-150.0,0.00016562,2]
[399410495,1766332244855,-150.0,0.00016562,2]
[399410496,1766332244866,-150.0,0.00016582,2]
[399410497,1766332244875,-150.0,0.00016582,2]
[399410498,1766332244884,-150.0,0.00016589,2]
[399410499,1766332244894,-150.0,0.00016598,2]
[399410500,1766332244904,-4609.0,0.00016616,2]
[399410501,1766332244913,-150.0,0.00016622,2]
[399410502,1766332244923,-150.0,0.00016625,2]
[399410503,1766332244933,-150.0,0.00016632,2]
[399410504,1766332244943,-1935.67190316,0.00016643,2]
[399410505,1766332244952,-150.0,0.00016647,2]
[399410506,1766332244962,-150.0,0.00016647,2]
[399410507,1766332244971,-150.0,0.00016661,2]
[399410508,1766332244980,-150.0,0.00016663,2]
[399410509,1766332244990,-150.0,0.00016663,2]
[399410510,1766332245000,-150.0,0.00016695,2]
[399410511,1766332245009,-150.0,0.00016697,2]
[399410512,1766332245019,-150.0,0.00016703,2]
[399410513,1766332245029,-150.0,0.00016703,2]
[399410514,1766332245039,-150.0,0.00016703,2]
[399410515,1766332245049,-150.0,0.00016703,2]
[399410516,1766332245058,-150.0,0.00016732,2]
[399410517,1766332245067,-150.0,0.00016733,2]
[399410518,1766332245077,-150.0,0.00016744,2]
[399410519,1766332245087,-150.0,0.00016744,2]
[399410520,1766332245096,-150.0,0.00016744,2]
[399410521,1766332245105,-150.0,0.00016744,2]
[399410522,1766332245115,-150.0,0.00016769,2]
[399410523,1766332245125,-150.0,0.00016774,2]
[399410524,1766332245134,-150.0,0.00016784,2]
[399410525,1766332245143,-150.0,0.00016792,2]
[399410526,1766332245153,-150.0,0.00016806,2]
[399410527,1766332245162,-150.0,0.00016816,2]
[399410528,1766332245172,-150.0,0.00016825,2]
[399410529,1766332245181,-150.0,0.00016825,2]
[399410530,1766332245191,-150.0,0.00016841,2]
[399410531,1766332245200,-150.0,0.00016842,2]
[399410532,1766332245210,-150.0,0.00016845,2]
[399410533,1766332245219,-150.0,0.00016865,2]
[399410534,1766332245230,-150.0,0.00016878,2]
[399410535,1766332245239,-150.0,0.00016889,2]
[399410536,1766332245250,-781.6968838,0.00016896,2]
[399410537,1766332245261,-1406.60977324,0.00016896,2]
[399410538,1766332245270,-458.04273928,0.00016896,2]
[399410539,1766332245280,-19924.45879842,0.000169,2]
[399410540,1766332245291,-1413.57889936,0.000169,2]
[399410541,1766332245301,-264.72472257,0.000169,2]
[399410542,1766332245310,-26191.44380865,0.000169,2]
[399410543,1766332245319,-150.0,0.00016901,2]
[399410544,1766332245331,-150.0,0.00016905,2]
[399410545,1766332245340,-150.0,0.00016905,2]
[399410546,1766332245350,-198.94914877,0.00016911,2]
[399410547,1766332245360,-150.0,0.00016914,2]